Cogmind - Beta 16 @@@ ROGUE MODE // 2025.11.06 @ 11:02:13 Player: Rocko1345 Result: Destroyed by as-34378 with Assembled Maul Performance ------------- Evolutions (0) 0 Regions Visited (2) 400 Robots Destroyed (2) 10 Value Destroyed (68) 68 Prototype IDs (2) 40 Alien Tech Used (0) 0 Bonus (0) 0 TOTAL SCORE: 518 Bonus ------- None Cogmind --------- Core Integrity 0/250 Matter 300/300 Energy 250/250 System Corruption 12% Temperature Cool (0) Movement Walking (120) Location -10/Mines Parts ------- > --- POWER (1) -------- Ion Engine > --- PROPULSION (2) --- Aluminum Leg Aluminum Leg > --- UTILITY (2) ------ Small Storage Unit > --- WEAPON (2) ------- (None) > --- INVENTORY (8) ---- Light Ion Engine Aluminum Leg Compact Matter Pod (150) Peak State ------------ > --- POWER ------------ Ion Engine > --- PROPULSION ------- Aluminum Leg Aluminum Leg > --- UTILITY ---------- Small Storage Unit Seismic Detector > --- WEAPON ----------- Assault Rifle Light Assault Rifle > --- INVENTORY -------- Light Ion Engine Aluminum Leg Aluminum Leg [Rating: 7] Favorites ----------- Power Ion Engine Engine Ion Engine Propulsion Aluminum Leg Leg Aluminum Leg Utility Small Storage Unit Device Seismic Detector Storage Small Storage Unit Weapon Light Assault Rifle Ballistic Gun Light Assault Rifle Special Weapon Mining Laser Special Melee Weapon Datajack Build | -11 -10 -10 ------- Run | Yrd Mat Min Slots Evolved . | . . . Power . | . . . Propulsion . | . . . Utility . | . . . Weapon . | . . . Parts Attached 10 | 6 1 3 Power 1 | 1 . . Engine 1 | 1 . . Core . | . . . Reactor . | . . . Propulsion 3 | 2 . 1 Treads . | . . . Leg 3 | 2 . 1 Wheel . | . . . Hover . | . . . Flight . | . . . Utility 2 | 1 1 . Device 1 | . 1 . Storage 1 | 1 . . Processor . | . . . Hackware . | . . . Protection . | . . . Artifact . | . . . Weapon 4 | 2 . 2 Energy Gun . | . . . Energy Cannon . | . . . Ballistic Gun 2 | 2 . . Ballistic Cannon . | . . . Launcher . | . . . Special Weapon 1 | . . 1 Impact Weapon . | . . . Slashing Weapon . | . . . Piercing Weapon . | . . . Special Melee Weapon 1 | . . 1 Unidentified Prototypes . | . . . Parts Lost 6 | . . 6 Power . | . . . Propulsion 1 | . . 1 Utility 1 | . . 1 Weapon 4 | . . 4 Highest Loss Streak 3 | . . 3 To Critical Strikes . | . . . Average Backups 3 | 1 3 5 Power . | . 1 1 Propulsion 1 | . 2 1 Utility . | . . . Weapon . | . . . Tool/Special . | . . . Unused Backups 5 | . 2 3 Power 1 | . . 1 Propulsion 3 | . 2 1 Utility 1 | . . 1 Weapon . | . . . Tool/Special . | . . . Average Slot Usage (%) 93 | . 99 83 Engine 14 | . 14 14 Leg 26 | . 28 25 Device 10 | . 13 5 Storage 14 | . 14 14 Ballistic Gun 24 | . 28 18 Special Weapon 1 | . . 4 Peak Build Rating 7 | 6 7 7 Average Rating 6 | 4 6 5 On Entrance 4 | . 6 7 Avg Prop Armor Cover (%) 8 | . . 8 Naked Turns . | . . . Heaviest Build 14 | 13 14 14 Greatest Support 20 | 20 20 20 Greatest Overweight (x) 1 | . . 1 Average Overweight (x) . | . . . Largest Inventory Capacity 8 | 8 8 8 Average Capacity 7 | 7 8 8 Most Carried 6 | 3 5 6 Average Carried 3 | 1 3 5 Final Capacity 8 | 8 8 8 Final Carried 5 | 3 5 3 Class Distribution -------------------- 100% | Mutant Dominant Class ---------------- Mutant | -10/Materials Mutant | -10/Mines Resources | -11 -10 -10 ----------- Run | Yrd Mat Min Matter Collected 355 | 239 88 28 Remotely . | . . . Salvage Created 95 | . 88 7 Parts 5 | . 5 . Haulers Intercepted . | . . . Recyclers Shooed . | . . . Parts Field Recycled . | . . . Retrieved Matter . | . . . Parts Self-Destructed . | . . . Prevented . | . . . Parts Restored . | . . . Kills | -11 -10 -10 ------- Run | Yrd Mat Min Combat Hostiles Destroyed 3 | . 2 1 Guns 3 | . 2 1 Classes Destroyed 2 | . 1 1 Grunt 2 | . 2 . Assembled 1 | . . 1 Best Kill Streak 1 | . 1 1 Combat Bots Only 1 | . 1 1 Max Kills in Single Turn 1 | . 1 1 Gunslinging . | . . . Exploded . | . . . Melee . | . . . Uniques/NPCs Destroyed . | . . . Combat | -11 -10 -10 -------- Run | Yrd Mat Min Hostile Shots Fired 34 | . 6 28 Missed 7 | . . 7 Hits 27 | . 6 21 Melee 13 | . . 13 Projectile 14 | . 6 8 AOE 7 | . . 7 Part Disruptions 2 | . . 2 Damage Taken 719 | . 65 654 Core 268 | . 11 257 Absorbed by Shields . | . . . Core Remaining (%) 100 | 100 . . Volleys Fired 28 | . 15 13 Largest 2 | . 2 2 Hottest 120 | . 40 120 Shots Fired 47 | . 30 17 Gun 46 | . 30 16 Cannon . | . . . Launcher . | . . . Special 1 | . . 1 Kinetic 46 | . 30 16 Thermal 1 | . . 1 Explosive . | . . . Electromagnetic . | . . . Robot Hit Streak 6 | . 5 6 Robot Miss Streak 4 | . 4 4 Penetration Max . | . . . Secondary Targets . | . . . Shots Hit Robots 23 | . 14 9 Core Hits 15 | . 7 8 Critical Kills . | . . . Critical Parts Destroyed 1 | . . 1 Critical Strikes 1 | . . 1 Destroy 1 | . . 1 Melee Attacks 2 | . . 2 Impact . | . . . Slashing . | . . . Piercing . | . . . Sneak Attacks . | . . . Combat Hostiles . | . . . Follow-up Attacks . | . . . Damage Inflicted 250 | . 145 105 Guns 232 | . 145 87 Cannons . | . . . Explosions . | . . . Melee . | . . . Ramming 18 | . . 18 Kinetic 232 | . 145 87 Thermal . | . . . Explosive . | . . . Electromagnetic . | . . . Impact . | . . . Slashing . | . . . Piercing . | . . . Highest Corruption 12 | . . 12 Average Corruption 7 | . . 7 Corruption Purged . | . . . Corruption Blocked . | . . . Overload Shots . | . . . Overflow Damage . | . . . Projectiles . | . . . Explosions . | . . . Melee . | . . . Knockbacks . | . . . Impact . | . . . Kinetic . | . . . Secondary . | . . . Self-Inflicted Damage . | . . . Shots . | . . . Rammed . | . . . Targets Rammed 10 | . . 10 Kicked 10 | . . 10 Crushed . | . . . Highest Temperature 40 | . 12 40 Average Temperature 13 | . 7 20 Received Heat Transfer 76 | . 36 40 Siege Activations . | . . . Martial Activations . | . . . Shielding Activations . | . . . Robots Disrupted . | . . . Combat Hostiles . | . . . Robots Corrupted . | . . . Combat Hostiles . | . . . Parts Fried . | . . . Impact Corruptions . | . . . Robots Melted . | . . . Combat Hostiles . | . . . Parts Melted . | . . . Heat Transferred . | . . . Parts Sabotaged . | . . . Parts Stolen . | . . . Parts Stripped . | . . . Power Chain Reactions . | . . . Alert | -11 -10 -10 ------- Run | Yrd Mat Min Maximum Alert Level . | . . . Low Security (%) 100 | 100 100 100 Level 1 . | . . . Level 2 . | . . . Level 3 . | . . . Level 4 . | . . . Level 5 . | . . . High Security . | . . . Max Security . | . . . Peak Influence 20 | . 20 20 Initial . | . . . Average 1 | . 1 1 Influence Increases 90 | . 60 30 Destroy 0b10 Robot/C 40 | . 40 . Destroy Leader 10 | . 10 . Successful Hack 10 | . 10 . Lose Combat Pursuer 30 | . . 30 Influence Decreases 90 | . 60 30 Time Decay 90 | . 60 30 Squads Dispatched 1 | . 1 . Investigation . | . . . Extermination . | . . . Reinforcement 1 | . 1 . Assault . | . . . Garrison . | . . . Intercept . | . . . Searches Triggered . | . . . Construction Impeded . | . . . Haulers Reinforced . | . . . Active Scanning Responses . | . . . Cargo Convoy Interrupts . | . . . Stealth | -11 -10 -10 --------- Run | Yrd Mat Min Distress Signals 1 | . 1 . Communications Jammed . | . . . Distress Signals . | . . . Times Spotted 28 | . 8 20 Peak Tracking Total 11 | . 2 11 Tactical Retreats 3 | . . 3 Traps | -11 -10 -10 ------- Run | Yrd Mat Min Traps Triggered . | . . . Indirectly . | . . . Trap Hack Attempts . | . . . Triggered . | . . . Disarmed . | . . . Reprogrammed . | . . . Reused . | . . . Traps Extracted . | . . . Installed . | . . . Triggered . | . . . Machines | -11 -10 -10 ---------- Run | Yrd Mat Min Machines Disabled . | . . . Max in Single Turn . | . . . Machines Repaired . | . . . Machines Dismantled . | . . . Machines Sabotaged . | . . . Overloaded Fab Kills . | . . . Hacking | -11 -10 -10 --------- Run | Yrd Mat Min Machines Accessed 1 | . 1 . Terminals 1 | . 1 . Fabricators . | . . . Repair Stations . | . . . Recycling Units . | . . . Scanalyzers . | . . . Garrison Access . | . . . Total Hacks 6 | . 6 . Successful 3 | . 3 . Failed 3 | . 3 . Catastrophic . | . . . Database Lockouts . | . . . Manual 4 | . 4 . Terminals 6 | . 6 . Fabricators . | . . . Repair Stations . | . . . Recycling Units . | . . . Scanalyzers . | . . . Garrison Access . | . . . Terminal Hacks 2 | . 2 . Prototype ID Bank 1 | . 1 . Locate Traps 1 | . 1 . Fabricator Hacks . | . . . Repair Station Hacks . | . . . Recycling Unit Hacks . | . . . Scanalyzer . | . . . Garrison Access Hacks . | . . . Unauthorized Hacks 1 | . 1 . Terminals 1 | . 1 . Botnet 1 | . 1 . Fabricators . | . . . Repair Stations . | . . . Recycling Units . | . . . Scanalyzers . | . . . Garrison Access . | . . . Data Cores Recovered . | . . . Used . | . . . Hacking Detections 1 | . 1 . Full Trace Events . | . . . Feedback Events . | . . . Feedback Blocked . | . . . Robot Schematics Acquired . | . . . Robots Built . | . . . Authchips . | . . . Time . | . . . Total Robot Build Rating . | . . . Part Schematics Acquired . | . . . Parts Built . | . . . Authchips . | . . . Time . | . . . Total Part Build Rating . | . . . Part Studies Acquired . | . . . Parts Repaired . | . . . Time . | . . . Parts Recycled . | . . . Recycled Matter . | . . . Retrieved Matter . | . . . Retrieved Components . | . . . Parts Scanalyzed . | . . . Part Schematics Acquired . | . . . Parts Damaged . | . . . Bothacking | -11 -10 -10 ------------ Run | Yrd Mat Min Used RIF Installer . | . . . Robots Hacked 1 | . . 1 Non-combat . | . . . Combat 1 | . . 1 Robot Hacks Applied 1 | . . 1 parse_system 1 | . . 1 Relay Couplers Released . | . . . Fabnet Peak Effective % . | . . . Robots Rewired . | . . . Allies Hacked . | . . . Hacks Repelled . | . . . Allies | -11 -10 -10 -------- Run | Yrd Mat Min Total Allies 3 | . . 3 Largest Group 3 | . . 3 Highest-Rated Group 40 | . . 40 Highest-Rated Ally 16 | . . 16 Total Orders . | . . . Ally Attacks 5 | . . 5 Total Damage 43 | . . 43 Kills 1 | . . 1 Allies Corrupted . | . . . Allies Melted . | . . . Intel | -11 -10 -10 ------- Run | Yrd Mat Min Active Infowar (turns) 678 | . 536 142 Seismic 678 | . 536 142 Robot Analysis Total . | . . . Derelict Logs Recovered . | . . . Drone Launches . | . . . Drone Recoveries . | . . . Exploration | -11 -10 -10 ------------- Run | Yrd Mat Min Turns Passed 992 | 71 549 372 Spaces Moved 484 | 55 197 232 Core 9 | 9 . . Treads . | . . . Legs 475 | 46 197 232 Wheels . | . . . Hover . | . . . Flight . | . . . Fastest Speed 50 | 50 120 120 Average Speed 126 | 108 120 136 Slowest Speed 190 | 120 120 190 Overloaded Moves . | . . . Propulsion Burnouts . | . . . Robots Hopped . | . . . Potential Cave-ins . | . . . Cave-ins Triggered . | . . . Exploration Rate (%) 32 | 4 40 53 Regions Visited 2 Branch Regions 1 Pre-discovered Areas . | . . . Known Exits Taken . | . . . Unknown Exits Taken 2 | 1 1 . Scrap Searched 1 | . . 1 Spaces Dug . | . . . Terrain Destroyed . | . . . Melee . | . . . Projectile . | . . . AOE . | . . . Terrain Rammed . | . . . Walls Destroyed . | . . . Machines Disabled . | . . . Actions | -11 -10 -10 --------- Run | Yrd Mat Min Total 815 | 63 483 269 Wait 273 | . 265 8 Move 482 | 54 196 232 Hop . | . . . Pick Up 8 | 3 4 1 Fast Attach 7 | 6 1 . Attach 3 | . . 3 Detach . | . . . Swap . | . . . Drop 2 | . 2 . Fire 28 | . 15 13 Melee 2 | . . 2 Ram . | . . . Kick 10 | . . 10 Crush . | . . . Escape Stasis . | . . . Rewire . | . . . Trap . | . . . Miscellaneous . | . . . Route ------- -11/Scrapyard -10/Materials (discovered 2 exits: [*Mat] / [*Min]) -10/Mines History --------- Turn | Location | Event 4 | -11/Scrapyard | Discovered new exit (range 14) 72 | -11/Scrapyard | Entered Materials 287 | -10/Materials | Discovered new exit (range 16) 315 | -10/Materials | Build established: Mutant 587 | -10/Materials | Discovered new exit (range 16) 621 | -10/Materials | Entered Mines 704 | -10/Mines | Assembled infested the area 715 | -10/Mines | Assisted by bots powering up and referring to "LRC-V3" 756 | -10/Mines | Lost 3 allies 794 | -10/Mines | Lost 3 parts (1n1u1w) 961 | -10/Mines | Core integrity fell below 50% 988 | -10/Mines | Core integrity fell below 20% 988 | -10/Mines | System corruption reached 10% 993 | -10/Mines | Destroyed by as-34378 with Assembled Maul Last Messages --------------- 00963_ Mining Laser destroyed. 00963_ System corrupted by crushing effect (+5). 00964_ U-05 Engineer lays Concrete. 00966_ Knocked back. 00966_ U-05 Engineer lays Concrete. 00971_ Lgt. Assault Rifle destroyed. 00971_ System corrupted by crushing effect (+2). 00975_ Jacked as-34378... >>parse_system Reading system data... 00980_ Kicked as-34378. 00981_ Knocked back. 00983_ Kicked as-34378. 00984_ Kicked as-34378 out of the way. 00987_ Datajack destroyed. 00987_ System corrupted by crushing effect (+5). 00988_ Kicked as-34378. 00989_ Kicked as-34378 out of the way. 00990_ Kicked as-34378. 00993_ Kicked as-34378 out of the way. Map ----- +----------------------------------------------------+ | #?# #?# =## # #???????????????#! ####??? | | #?# #?# #????????????#### ##?????? | | #?# #?# # #????????????# =#??????? | | #?# #?# # ??????????# [%#??????? | | #?# #?# % % % #????????# ####??????? | | #?# #### #= # #????????# #?????????? | | #?# ###????????# #?????????? | | #?###### ! #?????# #?????????? | | #??????# ! %| ####### #?????????? | | #??????## !%= # ## !%| ##????????? | | ????????? = # # ## ## #????????? | | ????????? #######?#?? ## #????????? | | ????????? ?????????? ?### #????????? | | ????????# #?????????# ???## #????????? | | ????????## ##?????????# ????## #????????? | | ?????????## #??????????# ###??## ##???????? | | ??????????#" #?????????## ##### ##??????? | | ??????????#%"#?????????# ## ##?????? | | ??????????#" #?????????# #?????? | | ??????????# #?????????# #?????? | | ??????????? #?????????# ##?????? | | ???????????###????????## ##??????? | | ??????????????????????# ####???????? | | ??????????????????????# ##??????????? | | ??????????????????????# a%% #???????????? | | ??????????????????????## @%% ##???????????? | | ???????????????????????## #????????????? | | ????????????????????????# #????????????? | | ????????????????????????# #????????????? | | ????????????????????????## ##???????????? | | ?????????????????????????## #???????????? | | ??????????????????????????### #???????????? | | ?????????????????????######?## ###?????????? | | ????????????????????## #### # #????????? | | ???????????????????## ## #????????? | | ??????????????????## #????????? | | ??????????????????# ## #????????? | | ??????????????????# ##?###????????? | | ??????????????????## ####?????????????? | | ???????????????????## ##????????????????? | | ????????????????????## #?????????????????? | | ?????????????????????# #?????????????????? | | ?????????????????????# ##?????????????????? | | ?????????????????????####???????????????????? | | ????????????????????????????????????????????? | | ????????????????????????????????????????????? | | | | | | | | | +----------------------------------------------------+ Best States ------------- Heat Dissipation 25 Energy Generation 10 Energy Capacity 250 Matter Stores 300 Matter Capacity 300 Sight Range 16 Terrain Scan Density 10 Evasion (%) 55 Item Schematics ----------------- None Robot Schematics ------------------ None Fabricated ------------ Nothing Repaired ---------- Nothing Studied --------- None Alien Tech Used ----------------- None Achievements -------------- None Challenges ------------ None Game ------ Seed StrikeZioniteTendrils Manual? 0 Play Time 00:08:32 Cumulative 237.0 hours Start 2025.11.06 @ 10:53:52 End 2025.11.06 @ 11:02:13 Sessions 1 Manual Loads 0 Difficulty Rogue Special Mode None Game No. 287 Rogue 113 Adventurer 174 Explorer 0 Win Type - Total 1 Types 1/0/0/0/0/0/0/0/0/0 Lore% 66 Gallery% 60 Achievement% 42 Wizard Run 0 Options --------- Layout 0 ASCII 0 Keyboard 1 Movement Numpad Keybinds 0 Fullscreen 1 Font 18/Terminus Map View 76x50 Zoom Use 0% Tactical HUD 1 Map Filters NONE Filters NONE Steam 1 RUN: 91fd69b9-9f56-4ca3-af82-aaaa76718fcf